bitfinex/quotes_ETHUSD_20240729
["timestamp","ask_amount","ask_price","bid_price","bid_amount"]
[1722211927590,2.42881,3293.8,3293.1,0.14597183]
[1722211928018,2.42865,3294.0,3293.1,0.14597183]
[1722211928019,2.42888,3293.7,3293.1,0.14597183]
[1722211928218,2.37888,3293.7,3293.1,0.14597183]
[1722211928432,2.42897,3293.6,3293.1,0.14597183]
[1722211928816,2.42897,3293.6,3292.5,9.70973]
[1722211929013,2.42897,3293.6,3292.6,1.36024171]
[1722211929327,3.636,3294.1,3292.6,1.36024171]
[1722211929488,2.4292,3293.3,3292.6,0.14628671]
[1722211929694,2.42925,3293.2,3292.6,0.14628671]
[1722211929992,3.636,3293.5,3291.8,2.291]
[1722211930194,2.42963,3292.7,3292.3,0.14647568]
[1722211930535,2.42947,3292.9,3291.7,7.28]
[1722211930536,6.06547,3292.9,3291.7,7.28]
[1722211930695,6.06547,3292.9,3292.4,0.14641269]
[1722211930894,2.42976,3292.5,3291.4,19.65]
[1722211931094,2.42972,3292.6,3291.7,2.43034]
[1722211931334,3.0,3292.8,3291.7,0.486083]
[1722211931545,3.0,3292.8,3291.8,0.14679071]
[1722211931760,2.43002,3292.2,3291.8,0.14679071]
[1722211932057,2.43002,3292.2,3291.1,9.71078]
[1722211932058,2.43015,3292.0,3291.1,7.28]
[1722211932191,3.636,3292.3,3291.1,7.28]
[1722211932393,3.636,3292.3,3291.2,0.14716887]
[1722211932693,2.4299,3292.4,3291.3,0.74271689]
[1722211932898,2.42979,3292.5,3291.5,2.43044]
[1722211933135,3.0,3292.8,3291.4,0.1470428]
[1722211933354,0.906554,3292.7,3291.6,0.14691675]
[1722211933494,2.43004,3292.2,3291.5,0.14697977]
[1722211933689,3.336224,3292.7,3291.7,0.14685373]
[1722211933925,2.42985,3292.4,3291.8,0.25772237]
[1722211934150,3.0,3292.8,3291.8,0.14679071]
[1722211934446,2.42987,3292.4,3291.3,0.74271689]
[1722211934595,3.636,3292.9,3291.3,0.74271689]
[1722211934802,3.636,3292.9,3291.4,0.46438549]
[1722211934803,2.42992,3292.3,3291.4,0.46438549]
[1722211935343,3.636,3292.9,3291.4,2.89494549]
[1722211935548,2.42971,3292.6,3291.4,2.89494549]
[1722211935853,2.42971,3292.6,3291.7,2.43033]
[1722211936142,2.42976,3292.5,3291.5,2.43047]
[1722211936363,2.4302,3291.9,3291.8,0.14679071]
[1722211936656,2.43021,3291.9,3291.1,7.28]
[1722211936796,2.4305,3291.6,3291.1,7.28]
[1722211936994,2.4305,3291.6,3290.7,19.65]
[1722211936995,2.43028,3291.8,3291.2,0.14716887]
[1722211937233,2.43028,3291.8,3290.7,19.65]
[1722211937403,3.636,3291.7,3291.3,0.14710583]
[1722211937602,2.43055,3291.5,3290.5,2.43118]
[1722211937802,2.43055,3291.5,3290.1,7.28]
[1722211937803,2.43055,3291.5,3290.6,2.57867717]
[1722211938311,2.43031,3291.8,3290.8,2.43095]
[1722211938512,2.672766,3292.5,3291.5,2.43048]
[1722211938513,2.42983,3292.4,3291.5,2.43048]
[1722211938713,2.42973,3292.6,3291.6,0.243048]
[1722211939029,2.42961,3292.8,3291.9,2.43013]
[1722211939228,2.42927,3293.2,3292.3,2.4299]
[1722211939439,4.71841,3293.4,3292.4,0.06074141]
[1722211939603,3.636,3293.5,3292.4,0.14877618]
[1722211939804,2.42952,3292.9,3291.9,2.43017]
[1722211940144,2.4297,3292.6,3292.0,0.14902818]
[1722211940313,2.42955,3292.8,3292.0,0.14902818]
[1722211940511,3.636,3292.9,3292.0,2.43012]
[1722211940512,6.06548,3292.9,3292.0,2.43012]
[1722211940755,2.4294,3293.0,3292.1,2.57884598]
[1722211940908,2.42923,3293.3,3292.4,2.42978]
[1722211941104,2.42923,3293.3,3292.2,2.6878546]
[1722211941105,3.636,3293.5,3292.2,0.2578846]
[1722211941413,3.636,3293.5,3292.1,0.14879598]
[1722211941414,2.42901,3293.6,3292.4,2.42983]
[1722211941758,2.42901,3293.6,3292.3,0.14866998]
[1722211941759,2.42955,3292.8,3292.5,0.148544]
[1722211941916,3.636,3292.9,3292.5,0.148544]
[1722211941917,4.85938,3292.6,3292.5,0.148544]
[1722211942116,3.636,3292.9,3291.1,2.43079]
[1722211942322,2.42979,3292.5,3291.3,2.43058]
[1722211942515,3.636,3292.9,3291.3,2.43058]
[1722211942516,2.42991,3292.3,3291.4,0.1492371]
[1722211942752,2.42965,3292.7,3291.4,0.1492371]
[1722211942972,2.43037,3291.7,3290.9,9.71093]
[1722211943113,2.43037,3291.7,3290.7,2.43107]
[1722211943470,2.43051,3291.5,3290.5,2.43123]
[1722211943763,2.43073,3291.2,3290.6,0.14974147]
[1722211943914,2.43057,3291.4,3290.2,22.0513]
[1722211944117,3.0,3291.6,3290.4,2.43129]
[1722211944338,2.43072,3291.2,3290.3,0.14993067]
[1722211944527,2.43072,3291.2,3290.5,0.14980453]
[1722211944528,2.43088,3291.0,3290.5,0.14980453]
[1722211944727,2.43088,3291.0,3290.0,2.4316]
[1722211944728,2.43088,3291.0,3290.4,0.1498676]
[1722211944957,2.673792,3291.2,3290.6,0.14974147]
[1722211944958,2.43096,3290.9,3290.6,0.14974147]
[1722211945260,0.486176,3290.9,3290.1,2.43153]
[1722211945412,2.43102,3290.8,3289.9,2.43164]
[1722211945618,2.43102,3290.8,3290.0,0.15011991]
[1722211946144,2.43087,3291.0,3290.0,0.15011991]
[1722211946353,2.43058,3291.4,3290.3,2.43138]
[1722211946578,2.43051,3291.5,3290.6,2.43113]
[1722211946718,6.06636,3291.7,3290.4,0.243138]
[1722211946719,3.636,3291.7,3290.4,0.243138]
[1722211946922,2.43028,3291.8,3290.6,2.43115]
[1722211947219,2.43036,3291.7,3290.7,2.58074841]
[1722211947533,2.3774,3292.0,3290.7,0.14967841]
[1722211947855,2.3774,3292.0,3290.2,2.43141]
[1722211947856,2.43031,3291.8,3290.9,2.43088]
[1722211948218,2.43029,3291.8,3291.0,0.14948926]
[1722211948425,0.23774,3291.9,3291.1,2.43073]
[1722211948660,2.43002,3292.2,3291.2,0.14936317]
[1722211948916,6.06591,3292.3,3291.4,2.43055]
[1722211949119,2.42963,3292.7,3291.8,2.43022]
[1722211949337,2.42963,3292.7,3291.1,2.49151992]
[1722211949338,6.06546,3292.9,3291.9,2.579122]
[1722211949707,4.91822,3293.1,3292.2,2.42997]
[1722211949981,2.42964,3292.7,3292.3,0.14866998]
[1722211950198,2.42969,3292.6,3291.8,2.43027]
[1722211950505,2.42969,3292.6,3291.0,9.5358]
[1722211950506,2.42954,3292.8,3291.9,0.148922]
[1722211950635,2.43011,3292.1,3291.9,0.148922]
[1722211950843,2.18011,3292.1,3291.0,9.71086]
[1722211951163,2.43022,3291.9,3291.1,0.14942621]
[1722211951490,2.43043,3291.6,3291.1,0.14942621]
[1722211951692,2.43056,3291.5,3291.1,0.14942621]
[1722211951853,2.43056,3291.5,3290.6,2.43116]
[1722211952180,2.43059,3291.4,3290.4,12.09346]
[1722211952408,2.43074,3291.2,3290.5,1.35916153]
[1722211952685,3.636,3291.7,3290.5,0.14980453]
[1722211952897,9.06639,3291.7,3290.5,0.14980453]
[1722211953042,2.43083,3291.1,3290.3,2.43138]
[1722211953242,2.43059,3291.4,3290.6,0.15020456]
[1722211953442,2.43066,3291.3,3290.1,2.43149]
[1722211953682,2.43066,3291.3,3290.2,0.243149]
[1722211953838,0.6636,3291.5,3290.2,0.39360584]
[1722211953839,2.43076,3291.2,3290.2,0.39360584]
[1722211954339,5.43057,3291.4,3290.2,0.39360584]
[1722211954340,2.43079,3291.1,3290.2,2.82506584]
[1722211954942,3.0,3291.4,3290.2,0.39360584]
[1722211955142,2.43022,3291.9,3290.3,0.06077185]
[1722211955382,2.43049,3291.6,3290.6,2.43112]
[1722211955604,3.636,3292.3,3290.7,0.15018383]
[1722211955770,2.43053,3291.5,3290.4,2.43129]
[1722211955940,2.43073,3291.2,3290.5,0.39343895]
[1722211956146,2.43058,3291.4,3290.5,2.58153995]
[1722211956384,2.43067,3291.3,3290.5,2.58153995]
[1722211956585,2.43065,3291.3,3290.5,2.58153995]
[1722211956770,2.43058,3291.4,3290.6,2.43115]
[1722211957094,6.06642,3291.7,3290.7,0.15015796]
[1722211957095,3.636,3291.7,3290.7,0.15015796]
[1722211957260,2.43034,3291.8,3290.7,0.15015796]
[1722211957440,2.43034,3291.8,3290.5,2.43122]
[1722211957647,2.43035,3291.7,3290.8,0.15004788]
[1722211957984,3.0,3292.1,3290.9,0.14998482]
[1722211957985,2.43072,3291.2,3290.9,0.14998482]
[1722211958281,2.43072,3291.2,3290.4,2.43126]
[1722211958282,2.43057,3291.4,3290.5,2.43117]
[1722211958488,2.43042,3291.6,3291.0,0.14989591]
[1722211958791,2.43042,3291.6,3289.8,5.3822]
[1722211958792,2.43028,3291.8,3290.8,2.43101]
[1722211958961,2.43028,3291.8,3291.0,2.43086]
[1722211959158,2.4307,3291.3,3291.1,0.14983287]
[1722211959371,2.43046,3291.6,3290.6,2.43115]
[1722211959689,2.43046,3291.6,3289.8,2.3822]
[1722211959690,3.037106,3291.6,3290.7,2.58116507]
[1722211959879,2.4305,3291.5,3290.7,2.58116507]
[1722211960081,0.606646,3291.6,3290.8,2.43101]
[1722211960245,3.636,3291.7,3290.9,2.43089]
[1722211960446,3.636,3291.7,3290.9,2.58084896]
[1722211960647,2.43056,3291.5,3290.9,0.14995896]
[1722211961072,2.43058,3291.4,3290.5,2.43119]
[1722211961299,2.43,3292.2,3291.2,2.43072]
[1722211961608,2.42855,3294.2,3290.5,2.674299]
[1722211961609,3.413,3292.4,3291.3,2.43064]
[1722211961889,2.43021,3291.9,3291.3,0.14970679]
[1722211962107,3.413,3291.9,3291.3,0.14970679]
[1722211962277,3.413,3291.9,3290.8,2.4457]
[1722211962278,2.43043,3291.6,3290.8,2.4457]
[1722211962450,2.43031,3291.8,3291.4,0.14964611]
[1722211962815,2.43031,3291.8,3291.5,0.14958308]
[1722211962816,2.43034,3291.8,3291.5,0.14958308]
[1722211963124,2.43034,3291.8,3290.5,7.523119]
[1722211963125,3.413,3291.6,3290.9,2.43093]
[1722211963478,3.413,3291.6,3291.0,0.14989826]
[1722211963786,5.84343,3291.6,3291.0,0.14989826]
[1722211963987,5.84343,3291.6,3290.6,3.1834319]
[1722211964207,5.84343,3291.6,3290.7,3.89494551]
[1722211964208,2.4305,3291.5,3290.7,3.89494551]
[1722211964694,2.4305,3291.5,3290.7,2.58116742]
[1722211965550,3.413,3291.6,3290.7,2.58116742]
[1722211966301,5.84343,3291.6,3290.7,2.58116742]
[1722211966651,2.4305,3291.5,3290.7,2.58116742]
[1722211967560,3.413,3291.1,3290.7,0.15008742]
[1722211967762,3.413,3291.1,3290.1,2.43152]
[1722211967964,3.413,3291.1,3290.2,0.15037219]
[1722211968201,3.413,3291.1,3290.7,2.43108]
[1722211968432,3.413,3291.6,3290.8,0.1499938]
[1722211968638,3.0,3291.5,3290.8,0.1499938]
[1722211968942,3.413,3291.1,3290.4,2.4313]
[1722211969103,3.413,3291.1,3290.9,0.14993074]
[1722211969297,3.413,3291.1,3290.5,2.43118]
[1722211969488,3.413,3291.1,3291.0,0.1498677]
[1722211969687,3.413,3291.1,3290.5,2.43123]
[1722211969927,3.413,3291.1,3291.0,0.1498677]
[1722211970129,5.84385,3291.1,3290.3,2.43134]
[1722211970332,5.84385,3291.1,3290.0,3.402761]
[1722211970333,5.84385,3291.1,3291.0,0.1498677]
[1722211970492,2.4309,3291.0,3290.0,3.402761]
[1722211970696,2.4309,3291.0,3290.0,3.402731]
[1722211970697,3.413,3290.6,3290.0,3.402731]
[1722211970890,3.413,3290.6,3289.8,2.43173]
[1722211970891,3.413,3290.6,3290.1,2.58196526]
[1722211971123,3.413,3290.6,3290.1,0.15043526]
[1722211971442,3.413,3290.6,3289.9,2.43163]
[1722211971593,3.413,3290.6,3290.0,0.15049835]
[1722211972912,3.413,3290.6,3289.8,2.43175]
[1722211973153,2.43131,3290.4,3290.1,0.15043526]
[1722211973349,2.43131,3290.4,3289.6,22.08189]
[1722211973490,5.84417,3290.6,3290.2,0.15037219]
[1722211973695,6.428587,3290.6,3289.8,2.43174]
[1722211973937,5.84417,3290.6,3290.3,0.15046197]
[1722211974138,5.84417,3290.6,3289.8,2.43174]
[1722211974139,2.43125,3290.5,3289.8,2.43174]
[1722211974355,3.413,3290.6,3290.4,0.1503989]
[1722211974645,3.413,3290.6,3289.8,2.43174]
[1722211974646,3.413,3290.6,3290.5,0.15036171]
[1722211974939,3.413,3290.6,3289.8,2.43174]
[1722211974940,3.413,3290.6,3289.8,4.639914]
[1722211975101,5.84421,3290.6,3290.5,0.15036171]
[1722211975300,5.84421,3290.6,3289.8,2.43174]
[1722211975745,5.84421,3290.6,3289.9,0.15074958]
[1722211976624,2.43125,3290.5,3289.9,0.15074958]
[1722211976849,2.43125,3290.5,3289.7,2.43181]
[1722211977058,3.413,3290.6,3289.9,2.43167]
[1722211977267,3.413,3290.6,3290.1,2.43151]
[1722211977486,3.413,3291.0,3290.4,2.43131]
[1722211977656,3.413,3291.0,3290.4,2.43124]
[1722211977842,5.84354,3291.5,3290.7,2.43109]
[1722211978350,2.43058,3291.4,3290.8,0.15031128]
[1722211978578,2.43065,3291.3,3290.8,0.15031128]
[1722211978760,2.43091,3291.0,3290.2,2.4314]
[1722211978927,2.43091,3291.0,3290.9,0.15020353]
[1722211979125,2.43091,3291.0,3289.9,7.28]
[1722211979126,3.493072,3291.4,3290.3,2.43138]
[1722211979413,2.4308,3291.1,3290.3,2.43138]
[1722211979525,2.4308,3291.1,3290.4,0.15046003]
[1722211979725,2.43065,3291.3,3290.4,2.58176003]
[1722211979921,2.43065,3291.3,3290.5,2.43118]
[1722211980128,5.84352,3291.5,3290.6,2.43116]
[1722211980327,5.84352,3291.5,3290.6,2.5814939]
[1722211980583,3.413,3291.5,3290.8,2.43101]
[1722211980929,2.74825691,3292.2,3290.4,0.258184]
[1722211980930,3.413,3292.0,3290.9,0.21091662]
[1722211981133,3.413,3292.0,3291.5,2.4305]
[1722211981371,3.413,3292.5,3291.7,2.43034]
[1722211981526,3.413,3292.5,3291.8,2.43027]
[1722211981825,3.413,3292.5,3291.8,2.57979571]
[1722211982029,3.413,3292.5,3292.0,2.43008]
[1722211982228,5.84239,3293.0,3292.1,0.14932727]
[1722211982454,3.413,3293.0,3291.8,7.28]
[1722211982657,3.413,3293.5,3292.1,2.336]
[1722211982886,2.4289,3293.7,3292.7,2.42955]
[1722211983033,4.73563,3293.9,3292.7,2.42955]
[1722211983034,4.73563,3293.9,3293.0,2.42934]
[1722211983247,4.73563,3293.9,3293.1,0.14855872]
[1722211983464,1.057722,3293.9,3293.1,0.14855872]
[1722211983796,3.413,3293.5,3292.4,7.28]
[1722211984089,3.413,3294.4,3292.4,7.28]
[1722211984090,3.413,3292.9,3292.4,7.28]
[1722211984250,3.413,3292.9,3292.1,2.43001]
[1722211984437,3.413,3292.9,3292.2,2.42998]
[1722211984639,5.84249,3292.9,3292.0,2.43012]
[1722211984949,3.413,3292.9,3291.9,2.43017]
[1722211985270,3.413,3292.9,3291.9,2.43019]
[1722211985271,5.84247,3292.9,3291.9,2.43019]
[1722211985590,3.413,3292.9,3292.1,2.43005]
[1722211985792,3.997233,3292.9,3292.2,2.42998]
[1722211985937,3.997233,3292.9,3291.8,7.28]
[1722211985938,3.413,3292.9,3292.3,2.4299]
[1722211986136,3.413,3292.9,3292.4,2.42982]
[1722211986383,2.3069,3293.4,3292.4,2.42982]
[1722211986384,5.7199,3293.4,3292.4,2.42982]
[1722211986542,2.42888,3293.7,3292.8,2.42947]
[1722211986745,0.242888,3293.6,3292.8,2.42947]
[1722211987067,0.242888,3293.6,3292.9,2.5779731]
[1722211987435,0.242888,3293.6,3293.1,2.42932]
[1722211987632,3.413,3293.8,3293.2,0.1483242]
[1722211988086,3.413,3293.8,3293.2,2.5775642]
[1722211988488,5.84152,3294.2,3293.3,2.42911]
[1722211988633,5.84151,3294.2,3293.4,2.42909]
[1722211988837,3.413,3294.2,3293.5,0.14813533]
[1722211989138,3.413,3294.2,3293.0,7.28]
[1722211989139,3.413,3294.2,3293.7,2.42887]
[1722211989534,3.413,3294.2,3293.8,0.1479465]
[1722211989739,0.27547786,3294.5,3293.8,0.1479465]
[1722211989978,5.84086,3295.1,3294.1,2.42851]
[1722211990183,3.413,3295.1,3294.4,2.42835]
[1722211990479,3.413,3295.1,3293.7,9.70883]
[1722211990480,2.42799,3294.9,3294.5,0.14750602]
[1722211990998,2.42799,3294.9,3294.0,2.42864]
[1722211991142,2.42814,3294.7,3294.6,0.14744311]
[1722211991338,3.413,3295.1,3293.7,7.28]
[1722211991339,2.4283,3294.5,3293.7,7.28]
[1722211991599,3.413,3294.5,3293.7,7.28]
[1722211991892,5.84129,3294.5,3293.8,0.1479465]
[1722211992039,3.413,3294.5,3293.8,0.1479465]
[1722211992240,2.42844,3294.3,3293.8,0.1479465]
[1722211992442,6.18263,3294.5,3293.5,2.42902]
[1722211992636,3.7543,3294.5,3293.7,2.42885]
[1722211992890,3.7543,3294.5,3293.8,0.14668031]
[1722211993272,3.7543,3294.5,3293.5,2.42896]
[1722211993273,6.18262,3294.5,3293.5,2.429]
[1722211993438,6.18262,3294.5,3293.6,0.14682967]
[1722211993636,0.861089,3294.4,3293.6,0.14682967]
[1722211993883,5.84172,3294.0,3293.2,7.28]
[1722211994081,5.84172,3294.0,3293.7,0.14676672]
[1722211994283,3.413,3294.0,3293.2,7.28]
[1722211994457,3.413,3293.5,3293.2,7.28]
[1722211994788,2.42866,3294.0,3293.1,2.42926]
[1722211994789,5.84167,3294.0,3293.1,2.42926]
[1722211994942,3.413,3294.0,3293.1,2.915127]
[1722211995138,5.84137,3294.4,3292.8,19.65]
[1722211995344,5.84137,3294.4,3293.3,2.42913]
[1722211995345,3.413,3294.4,3293.3,2.42913]
[1722211995669,3.413,3294.4,3293.7,2.42887]
[1722211996463,5.84138,3294.4,3293.5,2.429]
[1722211996665,5.84138,3294.4,3293.6,2.42894]
[1722211996885,3.413,3294.8,3293.8,2.42879]
[1722211997056,2.42799,3294.9,3294.0,2.42858]
[1722211997255,2.670789,3294.9,3294.0,2.42858]
[1722211997583,3.413,3295.3,3294.6,2.4282]
[1722211997789,3.413,3295.3,3294.1,26.93]
[1722211998084,2.42792,3295.0,3294.1,26.93]
[1722211998294,2.42821,3294.6,3294.1,26.93]
[1722211998497,2.42836,3294.4,3293.7,19.65]
[1722211998701,2.42836,3294.4,3293.5,26.93]
[1722211998702,2.42851,3294.2,3293.5,26.93]
[1722211998866,3.413,3294.3,3293.5,26.93]
[1722211999072,6.18274,3294.3,3293.5,29.359]
[1722211999610,3.413,3294.3,3293.7,2.42883]
[1722211999753,3.413,3294.3,3293.6,2.42893]
[1722211999953,3.413,3294.3,3293.7,2.42887]
[1722212000181,3.413,3294.3,3293.5,29.359]
[1722212000382,3.413,3294.3,3293.7,2.42887]
[1722212000677,2.42814,3294.7,3293.7,3.04901288]
[1722212000892,2.42815,3294.7,3293.5,26.93]
[1722212001055,2.42815,3294.7,3293.6,2.4289]
[1722212001257,2.42826,3294.6,3293.7,2.42886]
[1722212001577,3.558005,3294.7,3293.8,2.42879]
[1722212001896,5.84079,3295.2,3294.0,2.42865]
[1722212002198,5.84079,3295.2,3294.3,2.42839]
[1722212002199,3.413,3295.2,3294.3,2.42839]
[1722212002397,5.84043,3295.7,3294.1,0.14651498]
[1722212002597,6.1579287,3296.2,3295.3,2.42769]
[1722212002798,6.1579287,3296.2,3295.4,2.42761]
[1722212002799,7.02170384,3296.2,3295.4,2.42761]
[1722212002999,4.27677514,3296.2,3295.4,2.57331725]
[1722212003155,6.70381514,3296.2,3295.4,0.14569725]
[1722212003377,4.27677514,3296.2,3295.4,0.14569725]
[1722212003582,3.413,3296.2,3295.4,0.14569725]
[1722212003779,5.84009,3296.2,3295.5,0.14559448]
[1722212004094,2.42704,3296.2,3295.5,0.14559448]
[1722212004298,2.42718,3296.0,3295.5,0.14559448]
[1722212004618,2.42674,3296.6,3294.9,0.06068087]
[1722212004821,2.42679,3296.6,3295.7,2.42735]
[1722212004976,3.413,3296.7,3295.8,2.42731]
[1722212005307,3.413,3296.7,3295.8,0.14540587]
[1722212005506,5.83937,3297.1,3296.2,2.42698]
[1722212005708,6.423307,3297.1,3296.2,2.42698]
[1722212005931,6.423307,3297.1,3296.3,2.57204161]
[1722212006131,3.996937,3297.1,3295.8,2.42732]
[1722212006332,3.996937,3297.1,3295.6,2.42746]
[1722212006534,4.85369,3296.5,3295.9,0.14534301]
[1722212006708,0.3996937,3297.0,3295.7,0.14546874]
[1722212006709,2.4269,3296.4,3295.7,0.14546874]
[1722212006914,2.4269,3296.4,3296.0,0.14528016]
[1722212007111,3.413,3296.6,3295.7,2.42739]
[1722212007324,3.413,3296.6,3295.8,2.42731]
[1722212007532,2.4269,3296.4,3295.8,0.14540587]
[1722212007712,3.413,3296.6,3295.8,0.14540587]
[1722212007913,5.83974,3296.6,3295.8,2.42732]
[1722212008113,2.4269,3296.4,3295.9,0.14534301]
[1722212008549,2.4269,3296.4,3295.5,2.42753]
[1722212008912,2.4269,3296.4,3296.0,0.14528016]
[1722212009309,2.4269,3296.4,3295.5,2.42753]
[1722212009511,3.996961,3296.6,3296.1,0.1452173]
[1722212009714,3.996961,3296.6,3295.6,2.42747]
[1722212009715,3.996961,3296.6,3295.8,2.42732]
[1722212009915,3.996961,3296.6,3296.2,0.14470173]
[1722212009916,5.83979,3296.6,3296.2,0.14470173]
[1722212010154,3.413,3296.6,3295.9,2.42724]
[1722212010353,5.83974,3296.6,3296.3,0.14463888]
[1722212010658,6.423714,3296.6,3296.4,0.14457604]
[1722212010842,6.423714,3296.6,3295.9,2.42721]
[1722212010843,3.996974,3296.6,3295.9,2.42721]
[1722212011048,3.0,3297.1,3296.2,2.42703]
[1722212011049,3.413,3297.1,3296.2,2.42703]
[1722212011223,3.413,3297.1,3296.3,2.48761585]
[1722212011429,3.413,3297.1,3296.3,2.63225473]
[1722212011659,5.83938,3297.1,3296.3,2.63225473]
[1722212011969,4.23956,3297.1,3296.3,0.14463888]
[1722212012274,2.4781,3297.4,3295.7,19.65]
[1722212012275,3.413,3296.6,3295.7,19.65]
[1722212012425,3.413,3296.6,3295.2,2.3973]
[1722212012426,3.413,3296.6,3295.1,34.4673]
[1722212012625,2.42683,3296.5,3295.6,0.1397942]
[1722212013048,5.83978,3296.6,3295.6,0.1397942]
[1722212013249,5.83978,3296.6,3295.8,2.42732]
[1722212013460,5.83978,3296.6,3295.9,0.13959163]
[1722212013666,4.239637,3296.6,3295.9,2.56684163]
[1722212013878,5.83974,3296.6,3295.9,0.13959163]
[1722212014078,5.83974,3296.6,3295.6,2.42747]
[1722212014265,5.83974,3296.6,3295.8,2.42732]
[1722212014464,3.413,3296.6,3295.9,0.13959163]
[1722212014669,3.413,3296.6,3295.5,7.28]
[1722212014842,2.42711,3296.1,3295.6,0.13978022]
[1722212015177,2.42698,3296.3,3295.6,0.13978022]
[1722212015374,2.42723,3296.0,3295.6,0.13978022]
[1722212015864,2.42708,3296.2,3295.6,0.13978022]
[1722212016041,2.42716,3296.1,3295.6,0.13978022]
[1722212017272,3.413,3296.6,3295.6,0.13978022]
[1722212017273,2.4269,3296.4,3295.6,2.56719022]
[1722212017583,2.4269,3296.4,3295.6,3.30916824]
[1722212017756,2.42696,3296.3,3295.6,0.88175824]
[1722212017945,2.42682,3296.5,3295.6,0.13978022]
[1722212018139,2.42691,3296.4,3295.7,2.42739]
[1722212018472,3.413,3296.6,3295.2,0.06067718]
[1722212018473,4.85339,3296.7,3295.8,2.56502806]
[1722212018676,0.485339,3296.6,3295.8,2.42732]
[1722212018890,2.42674,3296.6,3295.9,0.19831965]
[1722212019171,2.42681,3296.5,3295.9,0.1376452]
[1722212019371,2.42675,3296.6,3295.9,0.1376452]
[1722212019585,2.42697,3296.3,3295.5,2.42755]
[1722212019768,2.42697,3296.3,3295.3,2.42763]
[1722212019970,2.42682,3296.5,3295.7,2.42739]
[1722212020288,2.42682,3296.5,3295.8,2.56493515]
[1722212020487,2.42682,3296.5,3295.8,0.13761515]
[1722212020680,2.42682,3296.5,3295.5,2.4275]
[1722212020681,2.42697,3296.3,3295.5,2.4275]
[1722212020885,2.42711,3296.1,3295.6,0.13774088]
[1722212021082,2.42697,3296.3,3295.3,2.42768]
[1722212021288,2.42697,3296.3,3295.4,0.13786663]
[1722212021528,2.42718,3296.0,3295.4,0.13786663]
[1722212021674,0.485349,3296.5,3295.4,0.13786663]
[1722212021675,2.42726,3295.9,3295.4,0.13786663]
[1722212021871,2.42734,3295.8,3295.0,9.70788]
[1722212022171,0.242726,3295.9,3295.1,2.56597193]
[1722212022371,2.42713,3296.1,3295.2,2.42776]
[1722212022616,2.42713,3296.1,3295.3,2.42769]
[1722212022824,2.42713,3296.1,3295.3,2.56569616]
[1722212022973,2.42699,3296.3,3295.3,2.56569616]
[1722212023168,0.242699,3296.2,3295.3,2.56569616]
[1722212023675,0.242699,3296.2,3295.3,0.13800616]
[1722212023995,2.42733,3295.8,3295.0,7.28]
[1722212024219,0.485349,3296.5,3295.0,7.28]
[1722212024220,2.42764,3295.4,3295.0,7.28]
[1722212024431,2.4278,3295.2,3294.4,2.42836]
[1722212024611,2.42767,3295.4,3294.4,2.671196]
[1722212024809,2.42767,3295.4,3294.6,2.42816]
[1722212025009,2.4275,3295.6,3294.8,2.42806]
[1722212025212,2.912985,3295.6,3294.8,2.42806]
[1722212025597,0.485485,3295.6,3294.9,2.48863571]
[1722212025793,2.913005,3295.6,3294.8,2.42806]
[1722212026123,2.4278,3295.2,3294.4,2.42833]
[1722212026339,2.42757,3295.5,3294.4,2.42829]
[1722212026625,2.42757,3295.5,3294.1,2.3737]
[1722212026626,3.0601755,3295.5,3294.1,2.3737]
[1722212026775,3.0601755,3295.5,3294.6,2.42814]
[1722212027220,2.42757,3295.5,3294.5,2.42824]
[1722212027516,2.42792,3295.0,3294.1,4.80227]
[1722212027821,2.42805,3294.9,3294.0,2.42865]
[1722212028025,2.3964,3294.8,3293.1,1.58490735]
[1722212028231,2.42834,3294.5,3293.5,2.42898]
[1722212028377,2.42834,3294.5,3292.6,0.6238397]
[1722212028378,2.42844,3294.3,3293.2,2.42921]
[1722212028579,2.42844,3294.3,3293.3,0.242921]
[1722212028806,2.42844,3294.3,3293.5,2.42902]
[1722212029876,2.3964,3294.8,3292.2,0.6238397]
[1722212030082,2.42861,3294.1,3292.6,0.06071977]
[1722212030285,2.42874,3293.9,3293.1,2.42926]
[1722212030580,2.42851,3294.2,3293.1,0.485868]
[1722212030793,2.42851,3294.2,3293.1,2.42929]
[1722212030991,2.42829,3294.5,3293.4,2.42909]
[1722212031192,2.42851,3294.2,3293.4,2.42909]
[1722212031424,2.42821,3294.6,3293.7,2.42883]
[1722212031719,2.42821,3294.6,3293.4,2.2616]
[1722212031720,2.42821,3294.6,3293.8,2.42874]
[1722212031937,2.42821,3294.6,3293.8,2.56846615]
[1722212032322,2.42844,3294.3,3293.8,0.13972615]
[1722212032633,0.785628,3294.6,3293.4,2.42909]
[1722212032946,2.42829,3294.5,3293.7,2.42887]
[1722212033313,2.42837,3294.4,3293.8,0.13971685]
[1722212033549,4.85746,3293.9,3293.8,0.13971685]
[1722212033853,4.85746,3293.9,3292.9,2.2616]
[1722212033854,0.485746,3293.9,3293.0,2.42933]
[1722212033998,2.42859,3294.1,3293.0,2.42933]
[1722212034342,3.413,3294.7,3293.1,0.1370748]
[1722212034343,2.42815,3294.7,3293.1,0.1370748]
[1722212034561,2.42827,3294.6,3293.1,0.1370748]
[1722212034857,2.42829,3294.5,3293.5,2.42898]
[1722212035011,2.42863,3294.1,3293.3,2.42916]
[1722212035358,2.42855,3294.2,3293.3,2.42916]
[1722212035664,0.24118,3294.7,3293.4,0.13692529]
[1722212035665,2.42902,3293.5,3293.4,0.13692529]